Cogmind - Beta 9.4 @@@ ROGUE MODE // 2020.03.16 @ 23:55:35 Player: Trione Result: Destroyed by 8R-AWN with 8R-AWN's Boregun Performance ------------- Evolutions (1) 500 Regions Visited (5) 1000 Robots Destroyed (56) 280 Value Destroyed (680) 680 Prototype IDs (11) 220 Alien Tech Used (0) 0 Bonus (-171) -171 TOTAL SCORE: 2509 Bonus ------- Friendly Fire -171 Cogmind --------- Core Integrity 0/400 Matter 119/300 Energy 7/100 System Corruption 0% Temperature Cool (0) Movement Core (650) Ox12 Location -9/Exiles Parts ------- > --- POWER (1) -------- (None) > --- PROPULSION (2) --- Improved Treads > --- UTILITY (4) ------ High-capacity Storage Unit > --- WEAPON (2) ------- Shock Rifle Rocket Launcher > --- INVENTORY (12) --- EM Shotgun Minigun Peak State ------------ > --- POWER ------------ Deuterium Engine > --- PROPULSION ------- Advanced Treads Advanced Treads > --- UTILITY ---------- High-capacity Storage Unit Heavy Armor Plating Hardened Medium Armor Plating > --- WEAPON ----------- Improved EM Shotgun Minigun > --- INVENTORY -------- Improved Treads Advanced Treads Light Armor Plating Heavy Armor Plating EM Shotgun EM Shotgun Improved EM Shotgun Shock Rifle Rocket Launcher Rocket Launcher [Rating: 27] Favorites ----------- Power Light Ion Engine Engine Light Ion Engine Propulsion Wheel Treads Advanced Treads Wheel Wheel Utility Large Storage Unit Storage Large Storage Unit Protection Light Armor Plating Weapon Improved Light Cannon Energy Gun Improved EM Shotgun Energy Cannon Advanced Beam Cannon Ballistic Gun Assault Rifle Ballistic Cannon Improved Light Cannon Launcher Rocket Launcher Special Melee Weapon Datajack Build | -11 -10 -10 -9 -9 -9 ------- Run | Scr Mat Min Mat Min Exi Slots Evolved 2 | . . . 2 . . Power . | . . . . . . Propulsion . | . . . . . . Utility 2 | . . . 2 . . Weapon . | . . . . . . Parts Attached 102 | 7 16 11 38 2 28 Power 3 | 1 . . 1 . 1 Engine 3 | 1 . . 1 . 1 Core . | . . . . . . Reactor . | . . . . . . Propulsion 49 | 2 12 9 20 . 6 Treads 25 | 2 4 5 10 . 4 Leg . | . . . . . . Wheel 24 | . 8 4 10 . 2 Hover . | . . . . . . Flight . | . . . . . . Utility 20 | 2 3 . 7 . 8 Device . | . . . . . . Storage 13 | 2 3 . 4 . 4 Processor . | . . . . . . Hackware . | . . . . . . Protection 7 | . . . 3 . 4 Artifact . | . . . . . . Weapon 30 | 2 1 2 10 2 13 Energy Gun 9 | . . . 2 . 7 Energy Cannon 4 | . . . 3 1 . Ballistic Gun 6 | 2 1 1 . . 2 Ballistic Cannon 3 | . . 1 2 . . Launcher 7 | . . . 3 1 3 Special Weapon . | . . . . . . Impact Weapon . | . . . . . . Slashing Weapon . | . . . . . . Piercing Weapon . | . . . . . . Special Melee Weapon 1 | . . . . . 1 Unidentified Prototypes 3 | . . . 3 . . Parts Lost 15 | . 1 1 . . 13 Power 2 | . . . . . 2 Propulsion 4 | . 1 . . . 3 Utility 4 | . . . . . 4 Weapon 5 | . . 1 . . 4 Highest Loss Streak 13 | . 1 1 . . 13 Average Slot Usage (%) 95 | . 99 99 97 100 86 Engine 11 | . 14 14 11 11 9 Treads 2 | . 1 2 1 . 5 Wheel 21 | . 26 25 20 22 16 Storage 31 | . 28 28 33 44 31 Protection 4 | . . . 8 . 5 Energy Cannon 5 | . . . 8 10 7 Ballistic Gun 9 | . 28 18 2 . . Ballistic Cannon 7 | . . 9 11 11 7 Naked Turns . | . . . . . . Heaviest Build 107 | 16 41 44 75 75 107 Greatest Support 44 | 40 40 40 44 26 44 Greatest Overweight (x) 5 | 3 1 1 2 2 5 Average Overweight (x) 1 | . . 1 1 2 2 Largest Inventory Capacity 32 | 8 16 16 28 28 32 Average Capacity 19 | 6 13 16 21 28 22 Most Carried 32 | 8 16 16 28 28 32 Average Carried 18 | 4 13 15 20 28 19 Final Capacity 28 | 8 16 16 28 28 12 Final Carried 28 | 8 16 16 28 28 2 Class Distribution -------------------- 53% | Mutant 46% | Hauler-Mutant Dominant Class ---------------- Mutant | -10/Materials Mutant | -10/Mines Hauler-Mutant | -9/Materials Hauler-Mutant | -9/Mines Hauler-Mutant | -9/Exiles Resources | -11 -10 -10 -9 -9 -9 ----------- Run | Scr Mat Min Mat Min Exi Matter Collected 1652 | 294 247 185 775 31 120 Remotely . | . . . . . . Salvage Created 1057 | 107 258 106 473 109 4 Parts 99 | 9 20 8 45 17 . Haulers Intercepted 5 | . 1 . 4 . . Recyclers Shooed . | . . . . . . Parts Field Recycled . | . . . . . . Retrieved Matter . | . . . . . . Parts Self-Destructed . | . . . . . . Prevented . | . . . . . . Kills | -11 -10 -10 -9 -9 -9 ------- Run | Scr Mat Min Mat Min Exi Combat Hostiles Destroyed 36 | . 7 6 14 4 5 Guns 13 | . 7 6 . . . Cannons 6 | . . . 6 . . AOE 17 | . . . 8 4 5 Classes Destroyed 11 | 2 5 . 3 . 1 Worker 2 | . . . 2 . . Builder 1 | . . . 1 . . Tunneler 3 | 2 . . . 1 . Hauler 5 | . 1 . 4 . . Recycler 3 | 1 1 . . 1 . Operator 2 | . 1 . 1 . . Watcher 4 | . 1 . 3 . . Swarmer 25 | . 6 6 9 4 . Grunt 2 | . 1 . 1 . . Sentry 4 | . . . 4 . . Assembled 5 | . . . . . 5 Best Kill Streak 6 | 3 4 3 6 5 4 Combat Bots Only 4 | . 3 3 3 4 4 Max Kills in Single Turn 5 | 1 2 1 3 5 2 Gunslinging 1 | . 1 . . . . Exploded 4 | . . . 3 4 2 Melee . | . . . . . . Uniques/NPCs Destroyed . | . . . . . . Combat | -11 -10 -10 -9 -9 -9 -------- Run | Scr Mat Min Mat Min Exi Damage Taken 3076 | . 205 268 506 13 2084 Core 467 | . 27 35 109 6 290 Absorbed by Shields . | . . . . . . Core Remaining (%) 87 | 100 . 75 . . . Volleys Fired 166 | 6 32 17 65 2 44 Largest 2 | 2 2 2 2 1 2 Hottest 107 | 40 40 40 107 68 90 Shots Fired 261 | 12 64 33 97 2 53 Gun 157 | 12 64 33 1 . 47 Cannon 89 | . . . 88 1 . Launcher 15 | . . . 8 1 6 Special . | . . . . . . Kinetic 167 | 12 64 33 58 . . Thermal 32 | . . . 31 1 . Explosive 15 | . . . 8 1 6 Electromagnetic 47 | . . . . . 47 Robot Hit Streak 18 | 5 8 6 13 . 18 Robot Miss Streak 5 | 1 3 3 5 1 2 Penetration Max . | . . . . . . Secondary Targets 1 | . 1 . . . . Max Gunslinging Chain 1 | . 1 . . . . Shots Hit Robots 163 | 9 37 20 47 . 50 Core Hits 78 | 6 15 6 29 6 16 Critical Hits 4 | . . . 4 . . Critical Kills . | . . . . . . Critical Parts Destroyed 4 | . . . 4 . . Melee Attacks 1 | . . . . . 1 Impact . | . . . . . . Slashing . | . . . . . . Piercing . | . . . . . . Sneak Attacks 1 | . . . . . 1 Combat Hostiles . | . . . . . . Follow-up Attacks . | . . . . . . Damage Inflicted 3239 | 128 439 200 1782 259 431 Guns 821 | 128 439 200 16 . 38 Cannons 978 | . . . 957 21 . Explosions 1440 | . . . 809 238 393 Melee . | . . . . . . Ramming . | . . . . . . Kinetic 1291 | 128 439 200 524 . . Thermal 470 | . . . 449 21 . Explosive 1440 | . . . 809 238 393 Electromagnetic 38 | . . . . . 38 Impact . | . . . . . . Slashing . | . . . . . . Piercing . | . . . . . . Highest Corruption . | . . . . . . Average Corruption . | . . . . . . Corruption Purged . | . . . . . . Overload Shots . | . . . . . . Overflow Damage 62 | . . . 51 . 11 Projectiles . | . . . . . . Explosions 62 | . . . 51 . 11 Melee . | . . . . . . Knockbacks 1 | . . . 1 . . Impact . | . . . . . . Kinetic 1 | . . . 1 . . Secondary . | . . . . . . Self-Inflicted Damage 135 | . . . 87 . 48 Shots 4 | . . . 3 . 1 Rammed . | . . . . . . Targets Rammed . | . . . . . . Kicked . | . . . . . . Crushed . | . . . . . . Highest Temperature 407 | . 6 . 278 22 407 Average Temperature 126 | . 6 . 96 16 180 Received Heat Transfer 114 | . 12 . 102 . . Effects 4 | . . . . . 4 Energy Bleed 2 | . . . . . 2 Interference 1 | . . . . . 1 Damage (minor) 1 | . . . . . 1 Siege Activations . | . . . . . . Robots Corrupted . | . . . . . . Combat Hostiles . | . . . . . . Parts Fried . | . . . . . . Impact Corruptions . | . . . . . . Robots Melted . | . . . . . . Combat Hostiles . | . . . . . . Parts Melted 1 | . . . 1 . . Heat Transferred 851 | . . . 814 37 . Parts Sabotaged . | . . . . . . Parts Stolen . | . . . . . . Parts Stripped . | . . . . . . Power Chain Reactions . | . . . . . . Missiles Intercepted . | . . . . . . Alert | -11 -10 -10 -9 -9 -9 ------- Run | Scr Mat Min Mat Min Exi Peak Influence 283 | 15 134 143 283 102 . Average Influence 66 | 6 58 62 86 26 . Maximum Alert Level 1 | . . . 1 . . Low Security (%) 93 | 100 100 100 84 100 . Level 1 6 | . . . 15 . . Level 2 . | . . . . . . Level 3 . | . . . . . . Level 4 . | . . . . . . Level 5 . | . . . . . . High Security . | . . . . . . Max Security . | . . . . . . Squads Dispatched 4 | . 2 1 1 . . Investigation 3 | . 1 1 1 . . Extermination . | . . . . . . Reinforcement 1 | . 1 . . . . Assault . | . . . . . . Garrison . | . . . . . . Intercept . | . . . . . . Construction Impeded . | . . . . . . Haulers Reinforced . | . . . . . . Stealth | -11 -10 -10 -9 -9 -9 --------- Run | Scr Mat Min Mat Min Exi Distress Signals 4 | . 1 . 3 . . Communications Jammed . | . . . . . . Distress Signals . | . . . . . . Times Spotted 64 | . 17 6 29 4 8 Peak Tracking Total 9 | . 3 3 5 4 9 Tactical Retreats 3 | . 2 . 1 . . Traps | -11 -10 -10 -9 -9 -9 ------- Run | Scr Mat Min Mat Min Exi Traps Triggered 3 | . 1 1 1 . . Indirectly . | . . . . . . Trap Hack Attempts . | . . . . . . Triggered . | . . . . . . Disarmed . | . . . . . . Reprogrammed . | . . . . . . Reused . | . . . . . . Traps Extracted . | . . . . . . Installed . | . . . . . . Triggered . | . . . . . . Machines | -11 -10 -10 -9 -9 -9 ---------- Run | Scr Mat Min Mat Min Exi Machines Disabled 5 | . . . 3 . 2 Max in Single Turn 2 | . . . 1 . 2 Machines Sabotaged . | . . . . . . Garrisons Compromised . | . . . . . . Overloaded Fab Kills . | . . . . . . Fab Network Shutdowns . | . . . . . . Hacking | -11 -10 -10 -9 -9 -9 --------- Run | Scr Mat Min Mat Min Exi Machines Accessed 22 | . 6 2 10 . 4 Terminals 14 | . 4 . 10 . . Fabricators . | . . . . . . Repair Stations . | . . . . . . Recycling Units 2 | . 2 . . . . Scanalyzers . | . . . . . . Garrison Access . | . . . . . . Total Hacks 100 | . 16 2 34 . 48 Successful 81 | . 9 2 22 . 48 Failed 18 | . 7 . 11 . . Catastrophic 1 | . . . 1 . . Database Lockouts 1 | . . . 1 . . Manual 46 | . 11 . 35 . . Terminals 45 | . 11 . 34 . . Fabricators . | . . . . . . Repair Stations . | . . . . . . Recycling Units 5 | . 5 . . . . Scanalyzers . | . . . . . . Garrison Access . | . . . . . . Terminal Hacks 67 | . 3 2 14 . 48 Record 48 | . . . . . 48 Part Schematic 2 | . . . 2 . . Open Door 2 | . . 2 . . . Terminal Index 3 | . . . 3 . . Unreport Threat 2 | . . . 2 . . Hauler Manifests 1 | . . . 1 . . Zone Layout 9 | . 3 . 6 . . Fabricator Hacks . | . . . . . . Repair Station Hacks . | . . . . . . Recycling Unit Hacks 3 | . 3 . . . . Retrieve Components 3 | . 3 . . . . Scanalyzer . | . . . . . . Garrison Access Hacks . | . . . . . . Unauthorized Hacks 24 | . 6 . 18 . . Terminals 11 | . 3 . 8 . . Track 8 | . 3 . 5 . . Botnet 3 | . . . 3 . . Fabricators . | . . . . . . Repair Stations . | . . . . . . Recycling Units . | . . . . . . Scanalyzers . | . . . . . . Garrison Access . | . . . . . . Data Cores Recovered 1 | . . . 1 . . Used 1 | . . . 1 . . Hacking Detections 12 | . 4 . 8 . . Full Trace Events . | . . . . . . Feedback Events . | . . . . . . Feedback Blocked . | . . . . . . Robot Schematics Acquired . | . . . . . . Robots Built . | . . . . . . Matter . | . . . . . . Time . | . . . . . . Total Robot Build Rating . | . . . . . . Part Schematics Acquired 2 | . . . 2 . . Parts Built . | . . . . . . Matter . | . . . . . . Time . | . . . . . . Total Part Build Rating . | . . . . . . Parts Repaired . | . . . . . . Time . | . . . . . . Parts Recycled . | . . . . . . Recycled Matter . | . . . . . . Retrieved Matter . | . . . . . . Retrieved Components 3 | . 3 . . . . Parts Scanalyzed . | . . . . . . Part Schematics Acquired . | . . . . . . Parts Damaged . | . . . . . . Bothacking | -11 -10 -10 -9 -9 -9 ------------ Run | Scr Mat Min Mat Min Exi Used RIF Installer . | . . . . . . Robots Hacked 1 | . . . . . 1 Non-combat . | . . . . . . Combat 1 | . . . . . 1 Robot Hacks Applied 1 | . . . . . 1 parse_system 1 | . . . . . 1 Relay Couplers Released . | . . . . . . Robots Rewired . | . . . . . . Allies Hacked . | . . . . . . Hacks Repelled . | . . . . . . Allies | -11 -10 -10 -9 -9 -9 -------- Run | Scr Mat Min Mat Min Exi Total Allies 1 | . . 1 . . . Largest Group 1 | . . 1 1 . . Highest-Rated Group 31 | . . 31 31 . . Highest-Rated Ally 31 | . . 31 31 . . Total Orders . | . . . . . . Ally Attacks . | . . . . . . Total Damage . | . . . . . . Kills . | . . . . . . Allies Corrupted . | . . . . . . Allies Melted . | . . . . . . Intel | -11 -10 -10 -9 -9 -9 ------- Run | Scr Mat Min Mat Min Exi Robot Analysis Total . | . . . . . . Derelict Logs Recovered 2 | . . 1 . 1 . Drone Launches . | . . . . . . Drone Recoveries . | . . . . . . Exploration | -11 -10 -10 -9 -9 -9 ------------- Run | Scr Mat Min Mat Min Exi Turns Passed 4357 | 114 936 588 1267 236 1216 Spaces Moved 3363 | 52 867 493 903 209 839 Core 20 | 18 . . . . 2 Treads 143 | 34 25 1 17 . 66 Legs . | . . . . . . Wheels 3200 | . 842 492 886 209 771 Hover . | . . . . . . Flight . | . . . . . . Fastest Speed 50 | 50 80 100 100 110 90 Average Speed 105 | 141 89 100 110 110 115 Slowest Speed 300 | 200 160 180 172 110 300 Overloaded Moves . | . . . . . . Propulsion Burnouts . | . . . . . . Robots Hopped . | . . . . . . Cave-ins Triggered . | . . . . . . Exploration Rate (%) 65 | 4 83 99 78 41 88 Regions Visited 5 Branch Regions 3 Pre-discovered Areas 2 | . . . . 1 1 Known Exits Taken 1 | . . . 1 . . Unknown Exits Taken 4 | 1 1 1 . 1 . Scrap Searched 1 | . . 1 . . . Spaces Dug 3 | . . . 3 . . Terrain Destroyed 73 | . . . 27 10 36 Melee . | . . . . . . Projectile 5 | . . . 5 . . AOE 68 | . . . 22 10 36 Actions | -11 -10 -10 -9 -9 -9 --------- Run | Scr Mat Min Mat Min Exi Total 3910 | 78 965 553 1066 212 1036 Wait 151 | 6 28 19 25 . 73 Move 3358 | 51 866 492 902 208 839 Hop . | . . . . . . Pick Up 75 | 8 14 7 20 . 26 Fast Attach 19 | 7 . 1 4 . 7 Attach 20 | . 2 1 2 . 15 Detach 4 | . 1 . . . 3 Swap 63 | . 14 9 32 2 6 Drop 53 | . 8 7 16 . 22 Fire 166 | 6 32 17 65 2 44 Melee 1 | . . . . . 1 Ram . | . . . . . . Kick . | . . . . . . Crush . | . . . . . . Escape Stasis . | . . . . . . Rewire . | . . . . . . Trap . | . . . . . . Miscellaneous . | . . . . . . Route ------- -11/Scrapyard -10/Materials (discovered 3 exits: *Mat x2 / *Min) -10/Mines (discovered 2 exits: *Mat x2) -9/Materials (discovered 3 exits: [*Mat x2] / *Min) -9/Mines (discovered 3 exits: [*Mat] / *Exi / [*Zio]) -9/Exiles (discovered 1 exit: *Min) History --------- Turn | Location | Event 26 | -11/Scrapyard | Discovered new exit (range 16) 115 | -11/Scrapyard | Entered Materials 206 | -10/Materials | Discovered new exit (range 17) 324 | -10/Materials | Build established: Mutant 545 | -10/Materials | Discovered new exit (range 9) 867 | -10/Materials | Discovered new exit (range 16) 1051 | -10/Materials | Entered Mines 1054 | -10/Mines | Met a Derelict shopkeep closing up shop 1141 | -10/Mines | Discovered new exit (range 14) 1150 | -10/Mines | Met a Derelict bent on vengeance 1347 | -10/Mines | Received a Rocket Launcher from a helpful Derelict 1462 | -10/Mines | Met a Derelict who couldn't figure out how to use a Trap Extractor 1611 | -10/Mines | Discovered new exit (range 3) 1613 | -10/Mines | Received a Mining Laser from a helpful Derelict 1639 | -10/Mines | Entered Materials 1639 | -9/Materials | Accompanied by 1 ally 1639 | -9/Materials | Evolved 2 slots: Utility x2 1640 | -9/Materials | Identified exit to Mines 2118 | -9/Materials | Discovered new exit (range 9) 2162 | -9/Materials | Central database locked down 2179 | -9/Materials | Build established: Hauler-Mutant 2562 | -9/Materials | Discovered new exit (range 8) 2906 | -9/Materials | Entered Mines 2964 | -9/Mines | A Derelict revealed a hidden shortcut to a safe place 2990 | -9/Mines | Learned location of Zion (-7) 3024 | -9/Mines | Discovered new exit (range 16) 3051 | -9/Mines | Deemed a non-threat by the Exiles lab entrance 3053 | -9/Mines | Discovered new exit (range 5) 3142 | -9/Mines | Entered Exiles 3143 | -9/Exiles | Identified exit to Mines 3206 | -9/Exiles | Met 8R-AWN 3223 | -9/Exiles | Met EX-HEX 3281 | -9/Exiles | Met EX-BIN 3294 | -9/Exiles | Met EX-DEC 3514 | -9/Exiles | Visited The Gauntlet 4166 | -9/Exiles | Attacked by the Exiles 4214 | -9/Exiles | Core integrity fell below 50% 4256 | -9/Exiles | Build established: Mutant 4312 | -9/Exiles | Core integrity fell below 20% 4358 | -9/Exiles | Destroyed by 8R-AWN with 8R-AWN's Boregun Last Messages --------------- 04298_ Penetrated by HV Slug. 04298_ Critical hit. 04298_ Hvy. Armor Plating destroyed. 04302_ Penetrated by HV Slug. 04302_ Critical hit. 04302_ Adv. Treads destroyed. 04302_ HV Slug penetrates Machine. 04306_ The unstable cave ceiling collapses. 04307_ Penetrated by HV Slug. 04315_ Adv. Treads destroyed. 04319_ HV Slug penetrates Wall. 04324_ Penetrated by HV Slug. 04336_ Critical hit. 04336_ Imp. EM Shotgun destroyed. 04336_ HV Slug penetrates Earth. 04341_ Penetrated by HV Slug. 04349_ Critical hit. 04349_ Penetrated by HV Slug. 04349_ Lgt. Armor Plating destroyed. 04353_ Penetrated by HV Slug. Map ----- +----------------------------------------------------+ | "????????????????????????????????????????????????? | | ""???????????????????????????????????????????????? | | ""???????????????????????????????????????????????? | | ""???????????????????????????????????????????????? | | ""#??????????????????????????????????????????????? | | ""#??????????????????????????????????????????????? | | ""#??????????????????????????????????????????????? | | ""#??????????????????????????????????????????????? | | ""#??????????????????????????????????????????????? | | """"?????????????????????????????????????????????? | | ""#??????????????????????????????????????????????? | | """"?????????????????????????????????????????????? | | #??????????????????????????????????????????????? | | ""#????????????????????????????????? ????????????? | | ###???????????????????????????????? ??????????#### | | ?????????????????????????????????# ??????????## # | | ????????????????????????????????# #?????????## # | | ???????????????????????????????# #??????????# > # | | #########?????????????????????# #???????????# # | | """"""""##?????????????#?????# #????????????# # | | """ """"##???????????## ???# #????????????## #? | | "" " #???????????? ?## #????????????## ## | | " """#?????????#### # ##????????????# ]! # | | " "#?????????# # # #????????????# ! ! # | | " "##????????# # # ###???????## ]= # | | ""###??????# g@ ;# ]!= # # | | """#??????# ## #####??????# ! ### | | "#??# ###????????### ]!/ ##?? | | # ########## ! #??? | | # # #""""## !!!!! ##??? | | ## ! ##??? | | ## !] #??? | | ### ] ##?? | | " #?#" "" #### ### | | # ##?#######??#### # | | * ##??????????????##### | | ####?????????????????????### | | " *% ##??????????????????????????### | | """ ""#?????????????????????????????### | | ""#" "##??????????????????????????????#" | | """##"""""""##???????????????????????????????#### | | ""###########???????????????????????????????????# | | ###?????????????????????????????????????????????## | | ?????????????????????????????????????????????????# | | ?????????????????????????????????????????????????? | | ?????????????????????????????????????????????????? | | ?????????????????????????????????????????????????? | | ?????????????????????????????????????????????????? | | ?????????????????????????????????????????????????? | | ?????????????????????????????????????????????????? | +----------------------------------------------------+ Best States ------------- Heat Dissipation 28 Energy Generation 14 Energy Capacity 275 Matter Stores 300 Matter Capacity 300 Sight Range 16 Terrain Scan Density 10 Armor Coverage 825 Evasion (%) 50 Recoil Reduction 2 Item Schematics ----------------- Hcp. Storage Unit | -9/Materials | Hacked Lrg. Storage Unit | -9/Materials | Hacked Robot Schematics ------------------ None Fabricated ------------ Nothing Alien Tech Used ----------------- None Achievements -------------- None Challenges ------------ None Game ------ Seed HeatGravmagTriangulator Manual? 0 Play Time 00:44:52 Cumulative 965.2 hours Start 2020.03.16 @ 23:05:45 End 2020.03.16 @ 23:55:35 Sessions 1 Manual Loads 0 Difficulty Rogue Special Mode None Game No. 360 Rogue 360 Adventurer 0 Explorer 0 Win Type - Total 24 Types 13/1/7/0/0/0/3 Lore% 96 Gallery% 97 Achievement% 83 Wizard Run 0 Options --------- ASCII 0 Keyboard 0 Movement Vi Keybinds 0 Fullscreen 0 Font 12/Crisp Map View 76x50 Tactical HUD 1 Map Filters NONE Filters NONE Steam 1 RUN: e2fe1ad1-b290-49c2-906a-f65b13a69983